bitfinex-derivatives/quotes_SOLF0:USTF0_20240924
["timestamp","ask_amount","ask_price","bid_price","bid_amount"]
[1727140584129,9.56,144.73,144.68,10.9875]
[1727140584329,9.56,144.73,144.68,9.56]
[1727140584537,9.56,144.72,144.66,9.56]
[1727140584722,1.3544,144.75,144.66,9.56]
[1727140584723,9.56,144.71,144.66,9.56]
[1727140585934,9.56,144.74,144.69,9.56]
[1727140586435,3.4551,144.72,144.68,3.4558]
[1727140586634,1.3544,144.75,144.68,3.4558]
[1727140587031,1.3544,144.75,144.69,14.95]
[1727140587632,3.4544,144.75,144.69,14.95]
[1727140588431,3.4544,144.75,144.71,3.4551]
[1727140589350,3.4544,144.75,144.7,3.4554]
[1727140589542,3.4548,144.73,144.69,16.3967]
[1727140589839,3.4548,144.73,144.69,1.4467]
[1727140590140,3.4548,144.73,144.69,4.9023]
[1727140592046,3.4546,144.74,144.69,16.3967]
[1727140592347,3.52945243,144.76,144.69,16.3967]
[1727140593041,3.4545,144.75,144.71,3.4553]
[1727140595742,3.4545,144.75,144.69,16.3967]
[1727140595743,3.52945243,144.76,144.69,16.3967]
[1727140596044,17.7269,144.77,144.69,1.4467]
[1727140596253,21.1436548,144.77,144.69,1.4467]
[1727140596441,13.53237044,144.76,144.69,1.4467]
[1727140596747,13.53237044,144.76,144.69,4.9023]
[1727140597136,13.53237044,144.76,144.69,1.4467]
[1727140597339,3.4548,144.74,144.7,3.4555]
[1727140597537,13.53237044,144.76,144.69,1.4467]
[1727140597943,3.4549,144.73,144.69,4.9024]
[1727140598151,3.4549,144.73,144.69,3.4557]
[1727140598355,13.53237044,144.76,144.68,1.391]
[1727140598537,3.4553,144.71,144.68,4.8469]
[1727140598946,3.4551,144.72,144.68,4.8469]
[1727140599148,13.53237044,144.76,144.68,1.391]
[1727140599340,13.53237044,144.76,144.68,2.7348]
[1727140599543,3.4546,144.74,144.7,3.4554]
[1727140599948,13.53237044,144.76,144.69,14.95]
[1727140600150,3.4542,144.76,144.72,3.4549]
[1727140600557,1.369,144.77,144.72,3.4549]
[1727140601252,1.369,144.77,144.69,16.2946]
[1727140602359,3.4545,144.75,144.71,3.4551]
[1727140603862,16.319,144.77,144.68,2.7348]
[1727140604567,3.455,144.73,144.69,3.4556]
[1727140606965,1.369,144.77,144.69,14.95]
[1727140607158,1.369,144.77,144.71,14.95]
[1727140607364,13.57415075,144.8,144.74,14.95]
[1727140607561,13.57415075,144.82,144.75,3.4543]
[1727140607761,16.94850281,144.82,144.75,3.4543]
[1727140608362,3.4535,144.79,144.75,3.4543]
[1727140609768,3.4536,144.78,144.75,3.4543]
[1727140609968,3.4536,144.78,144.74,18.4045]
[1727140610169,3.4536,144.78,144.74,3.4545]
[1727140612281,3.4535,144.79,144.72,14.95]
[1727140612469,3.4535,144.79,144.73,1.3219]
[1727140612967,3.4535,144.79,144.75,3.4543]
[1727140613874,17.02765075,144.79,144.75,3.4543]
[1727140614178,13.57415075,144.78,144.75,3.4543]
[1727140614876,3.4535,144.79,144.75,3.4543]
[1727140615775,13.57415075,144.81,144.74,14.95]
[1727140615976,13.57415075,144.84,144.74,16.3571]
[1727140616170,13.57415075,144.84,144.74,17.756]
[1727140616570,3.4531,144.81,144.78,3.4536]
[1727140616967,3.4531,144.81,144.74,17.756]
[1727140617171,3.43436565,144.82,144.74,17.756]
[1727140617367,28.52415075,144.83,144.74,17.756]
[1727140617574,13.57415075,144.82,144.76,3.4539]
[1727140617773,3.4534,144.79,144.76,3.4539]
[1727140617981,3.4534,144.79,144.74,17.756]
[1727140618180,3.4534,144.79,144.75,3.4542]
[1727140620578,3.40602246,144.81,144.74,3.4546]
[1727140620780,13.57415075,144.82,144.74,3.4546]
[1727140620980,3.4537,144.78,144.74,3.4546]
[1727140621686,3.4534,144.79,144.75,3.4543]
[1727140621984,13.57415075,144.82,144.74,14.95]
[1727140622287,3.4655792,144.81,144.74,14.95]
[1727140622480,3.4535,144.79,144.75,3.4543]
[1727140626077,3.4535,144.79,144.74,14.95]
[1727140626078,3.4535,144.79,144.76,3.454]
[1727140628979,13.57415075,144.82,144.76,14.95]
[1727140629285,13.57415075,144.84,144.78,14.95]
[1727140629678,3.4526,144.83,144.79,3.4532]
[1727140630888,3.4523,144.84,144.8,3.453]
[1727140631095,3.4523,144.84,144.78,14.95]
[1727140631582,3.4523,144.84,144.8,3.4529]
[1727140632890,3.4524,144.83,144.8,3.4529]
[1727140633187,1.4517,144.85,144.78,14.95]
[1727140633693,1.4517,144.85,144.78,18.4034]
[1727140633880,3.4528,144.82,144.78,18.4034]
[1727140634393,3.4528,144.82,144.79,3.4534]
[1727140634892,3.4529,144.81,144.78,14.95]
[1727140635598,3.44285392,144.82,144.74,2.8177]
[1727140635892,2.6638,144.84,144.74,17.7677]
[1727140636079,16.23795075,144.84,144.74,17.7677]
[1727140636388,16.23795075,144.84,144.75,3.4541]
[1727140637288,3.4534,144.79,144.75,3.4541]
[1727140639299,3.4532,144.8,144.76,3.454]
[1727140639601,3.4532,144.8,144.76,14.95]
[1727140640090,13.57415075,144.84,144.78,14.95]
[1727140640298,1.4517,144.85,144.8,14.95]
[1727140640691,3.4523,144.84,144.8,18.403]
[1727140641698,3.4523,144.84,144.81,3.4529]
[1727140643801,3.452,144.85,144.81,3.4529]
[1727140644007,13.58926852,144.88,144.8,14.95]
[1727140644195,3.4519,144.86,144.8,14.95]
[1727140644389,19.1501,144.89,144.8,14.95]
[1727140644596,19.1501,144.89,144.81,3.4527]
[1727140645104,3.4519,144.86,144.81,3.4527]
[1727140645307,3.4519,144.86,144.82,18.4026]
[1727140645498,4.2001,144.89,144.79,1.3584]
[1727140645499,17.77192173,144.89,144.84,14.95]
[1727140645799,2.7632,144.89,144.84,14.95]
[1727140646104,2.7632,144.89,144.84,18.4021]
[1727140646403,3.4515,144.88,144.84,18.4021]
[1727140647905,3.4507,144.91,144.85,14.95]
[1727140648100,16.31017421,144.93,144.85,14.95]
[1727140648407,3.4509,144.9,144.85,18.4018]
[1727140648797,34.63621116,144.93,144.85,18.4018]
[1727140649004,3.4511,144.89,144.85,18.4018]
[1727140650607,3.4514,144.88,144.83,18.4023]
[1727140651008,3.4519,144.86,144.82,3.4525]
[1727140651913,3.4513,144.88,144.84,3.4521]
[1727140652294,21.06663695,144.93,144.83,14.95]
[1727140652508,3.4509,144.9,144.86,3.4517]
[1727140652713,6.11663695,144.93,144.85,14.95]
[1727140652714,13.53473307,144.91,144.85,14.95]
[1727140653007,3.4509,144.9,144.85,18.4019]
[1727140654911,3.4509,144.9,144.86,3.4517]
[1727140656008,3.451,144.89,144.85,18.4018]
[1727140656210,34.59571115,144.93,144.84,14.95]
[1727140656407,21.06663695,144.93,144.84,14.95]
[1727140656604,3.4514,144.88,144.84,18.4021]
[1727140658316,3.4515,144.87,144.84,18.4021]
[1727140658814,3.4509,144.9,144.85,3.4519]
[1727140659017,6.11663695,144.93,144.85,3.4519]
[1727140659018,19.64059695,144.93,144.85,3.4519]
[1727140659327,6.11663695,144.93,144.84,14.95]
[1727140659511,6.11663695,144.93,144.85,14.95]
[1727140659710,6.11663695,144.93,144.86,3.4517]
[1727140659912,4.75493695,144.93,144.86,3.4517]
[1727140660112,3.4504,144.92,144.87,14.95]
[1727140660313,1.3789,144.93,144.87,14.95]
[1727140660514,1.3275,144.94,144.87,14.95]
[1727140660912,3.4503,144.92,144.88,3.4511]
[1727140661418,3.4505,144.91,144.87,18.4014]
[1727140661618,3.42496028,144.93,144.87,14.95]
[1727140661820,3.4501,144.93,144.89,3.451]
[1727140662012,13.52869969,144.95,144.89,18.401]
[1727140662013,16.93570293,144.95,144.89,18.401]
[1727140662205,13.52869969,144.94,144.89,18.401]
[1727140662409,16.97869969,144.94,144.89,18.401]
[1727140662611,1.3137,144.99,144.93,14.95]
[1727140662923,3.4489,144.98,144.93,14.95]
[1727140663124,3.4489,144.98,144.93,18.3999]
[1727140663322,1.3137,144.99,144.93,18.3999]
[1727140663620,4.7463246,144.99,144.93,18.3999]
[1727140663815,1.3137,144.99,144.93,18.3999]
[1727140664015,3.53720833,144.98,144.93,18.3999]
[1727140664214,3.4489,144.98,144.93,18.3999]
[1727140665921,3.4489,144.98,144.94,3.4498]
[1727140666220,3.4489,144.98,144.93,14.95]
[1727140666621,3.4489,144.98,144.93,18.3998]
[1727140668117,4.74459879,144.99,144.93,14.95]
[1727140668118,3.4487,144.99,144.93,14.95]
[1727140668323,3.37877219,144.99,144.93,14.95]
[1727140668524,14.84847247,145.03,144.93,14.95]
[1727140668721,14.84847247,145.03,144.94,3.4497]
[1727140669317,13.53287247,145.02,144.95,18.3995]
[1727140669724,1.3156,145.03,144.95,14.95]
[1727140669923,1.3156,145.03,144.97,14.95]
[1727140670226,1.3816,145.05,145.0,3.4482]
[1727140670525,1.4288,145.07,144.99,14.95]
[1727140670930,3.447,145.06,145.01,14.95]
[1727140671320,224.0,145.17,145.03,14.95]
[1727140671519,19.1474,145.13,145.03,14.95]
[1727140671715,22.54976073,145.13,145.03,14.95]
[1727140672016,3.4462,145.1,145.04,3.4472]
[1727140672213,22.54976073,145.13,145.04,3.4472]
[1727140672426,22.54976073,145.13,145.05,14.95]
[1727140673016,3.4458,145.11,145.06,3.4468]
[1727140673219,6.20636073,145.13,145.06,14.95]
[1727140673419,4.83116073,145.13,145.06,14.95]
[1727140673615,2.8414,145.2,145.09,14.95]
[1727140673923,4.193,145.2,145.11,14.95]
[1727140674119,1.3516,145.2,145.11,14.95]
[1727140674519,14.95,145.18,145.08,14.95]
[1727140674720,1.4406,145.19,145.11,14.95]
[1727140674918,13.45627663,145.28,145.17,14.95]
[1727140675118,13.45627663,145.28,145.08,14.95]
[1727140675119,4.2565,145.28,145.19,14.95]
[1727140675324,4.2565,145.28,145.21,14.95]
[1727140675521,4.2565,145.28,145.23,14.95]
[1727140675926,1.4373,145.28,145.23,14.95]
[1727140676317,1.4373,145.28,145.21,23.8]
[1727140677323,1.4373,145.28,145.19,23.8]
[1727140678020,1.4373,145.28,145.2,1.4113]
[1727140678224,0.979945,145.35,145.21,23.8]
[1727140678420,4.46554914,145.3,145.22,1.3151]
[1727140678616,24.779945,145.3,145.17,93.48153936]
[1727140678822,3.4431,145.23,145.17,93.48153936]
[1727140680331,27.9943,145.29,145.18,23.8]
[1727140680532,27.9943,145.29,145.21,23.8]
[1727140680533,4.1943,145.29,145.21,23.8]
[1727140680736,1.3823,145.29,145.21,23.8]
[1727140680932,3.4419,145.28,145.22,1.3855]
[1727140681234,1.3823,145.29,145.22,1.3855]
[1727140681532,3.442,145.27,145.22,1.3855]
[1727140682324,0.979945,145.3,145.22,1.3855]
[1727140682535,0.979945,145.3,145.23,1.4062]
[1727140682927,3.4416,145.29,145.23,4.8491]
[1727140683136,0.979945,145.3,145.23,1.4062]
[1727140683530,0.979945,145.3,145.22,1.3855]
[1727140683531,24.779945,145.3,145.22,1.3855]
[1727140683725,0.979945,145.3,145.22,1.3855]
[1727140684232,3.4415,145.29,145.23,3.4428]
[1727140684437,0.979945,145.3,145.23,3.4428]
[1727140685428,3.4416,145.29,145.24,3.4427]
[1727140685636,0.979945,145.3,145.23,23.8]
[1727140686033,0.979945,145.3,145.22,1.3855]
[1727140686426,4.421445,145.3,145.22,1.3855]
[1727140686628,0.979945,145.3,145.25,3.4423]
[1727140686833,0.979945,145.3,145.25,23.8]
[1727140687130,0.979945,145.3,145.26,1.3685]
[1727140687726,0.979945,145.3,145.22,1.3855]
[1727140688337,3.4419,145.28,145.22,1.3855]
[1727140689143,3.4419,145.28,145.23,3.4428]
[1727140690844,0.979945,145.3,145.23,23.8]
[1727140691138,0.979945,145.3,145.26,23.8]
[1727140691340,0.979945,145.3,145.27,2.7442]
[1727140691544,0.979945,145.3,145.28,3.4416]
[1727140692130,0.979945,145.3,145.27,2.7442]
[1727140693339,0.979945,145.3,145.22,1.3855]
[1727140693537,0.979945,145.3,145.23,1.3552]
[1727140694440,24.779945,145.3,145.19,23.8]
[1727140694637,2.7935,145.29,145.19,23.8]
[1727140695241,25.1636,145.28,145.18,2.7135]
[1727140695541,3.4437,145.2,145.15,3.4448]
[1727140695736,3.39500558,145.24,145.14,1.3583]
[1727140695933,23.8,145.25,145.14,1.3583]
[1727140696135,3.4434,145.22,145.14,1.3583]
[1727140696336,27.28081114,145.25,145.14,1.3583]
[1727140696541,3.4434,145.22,145.17,3.4444]
[1727140696949,27.18397836,145.25,145.14,1.3583]
[1727140697245,3.38397836,145.25,145.14,1.3583]
[1727140697448,23.8,145.27,145.14,1.3583]
[1727140697641,27.22188443,145.27,145.14,1.3583]
[1727140697943,23.8,145.24,145.14,1.3583]
[1727140698342,3.4438,145.2,145.15,3.4448]
[1727140698542,23.8,145.24,145.15,3.4448]
[1727140698849,23.8,145.24,145.14,1.3583]
[1727140700643,3.4441,145.19,145.14,4.8033]
[1727140700849,23.8,145.24,145.1,23.8]
[1727140701445,3.4446,145.17,145.12,3.4455]
[1727140701653,3.36778918,145.19,145.1,23.8]
[1727140701851,27.22188443,145.27,145.11,3.4457]
[1727140701852,23.8,145.21,145.11,3.4457]
[1727140702047,4.0504,145.2,145.11,3.4457]
[1727140702251,3.38170412,145.19,145.11,3.4457]
[1727140702549,4.0504,145.2,145.1,27.246]
[1727140702760,4.0504,145.2,145.06,2.724]
[1727140702761,23.8,145.19,145.08,23.8]
[1727140702947,3.38687439,145.19,145.08,23.8]
[1727140703149,4.0504,145.2,145.1,23.8]
[1727140703654,3.4445,145.17,145.1,23.8]
[1727140703843,4.0504,145.2,145.12,23.8]
[1727140704355,3.4441,145.19,145.14,3.4449]
[1727140704552,3.42188443,145.27,145.17,23.8]
[1727140704747,4.0763,145.26,145.17,23.8]
[1727140704942,3.4431,145.23,145.17,27.2444]
[1727140705151,2.677,145.26,145.17,23.8]
[1727140705560,6.0587992,145.26,145.17,23.8]
[1727140705746,2.677,145.26,145.17,23.8]
[1727140705951,3.4429,145.24,145.18,3.444]
[1727140706152,6.1590849,145.26,145.15,23.8]
[1727140706352,2.677,145.26,145.15,23.8]
[1727140706550,2.677,145.26,145.15,27.2448]
[1727140707051,3.4436,145.21,145.15,27.2448]
[1727140707250,2.677,145.26,145.15,27.2448]
[1727140707452,3.4436,145.21,145.15,27.2448]
[1727140707652,2.677,145.26,145.15,23.8]
[1727140707954,6.12841333,145.26,145.15,23.8]
[1727140708156,2.677,145.26,145.15,23.8]
[1727140708359,3.4437,145.2,145.16,14.89]
[1727140709258,14.89,145.24,145.14,14.89]
[1727140709549,3.4443,145.18,145.14,14.89]
[1727140709756,1.4465,145.22,145.14,14.89]
[1727140710152,3.4443,145.18,145.14,14.89]
[1727140710351,1.4465,145.22,145.14,14.89]
[1727140710552,14.89,145.2,145.1,14.89]
[1727140710754,2.7452,145.19,145.1,14.89]
[1727140710956,3.4452,145.14,145.1,14.89]
[1727140711357,2.7452,145.19,145.1,14.89]
[1727140711653,3.44051495,145.18,145.12,14.89]
[1727140711852,2.7452,145.19,145.12,14.89]
[1727140712559,3.4444,145.17,145.12,14.89]
[1727140712858,3.4446,145.16,145.12,14.89]
[1727140713358,3.4446,145.16,145.12,18.3355]
[1727140713660,2.7452,145.19,145.12,14.89]
[1727140713863,2.7452,145.19,145.13,3.4451]
[1727140714357,3.4444,145.17,145.12,18.3355]
[1727140714558,3.44135696,145.18,145.12,18.3355]
[1727140714747,3.44135696,145.18,145.12,14.89]
[1727140714953,2.7452,145.19,145.12,14.89]
[1727140715154,3.4446,145.16,145.12,14.89]
[1727140715353,2.7452,145.19,145.12,14.89]
[1727140715656,3.4455,145.13,145.08,18.3363]
[1727140715869,3.46008121,145.15,145.08,18.3363]
[1727140716051,14.89,145.18,145.08,14.89]
[1727140716252,3.4457,145.12,145.08,14.89]
[1727140716958,3.446,145.11,145.08,14.89]
[1727140717353,3.4456,145.12,145.08,14.89]
[1727140718160,3.4454,145.13,145.08,18.3365]
[1727140718558,3.4454,145.13,145.08,14.89]
[1727140718758,3.4454,145.13,145.08,18.3364]
[1727140719161,3.4456,145.12,145.08,18.3364]
[1727140720356,3.4453,145.14,145.08,18.3364]
[1727140720550,18.36076899,145.18,145.08,18.3364]
[1727140720755,14.89,145.16,145.08,18.3364]
[1727140720966,3.4457,145.12,145.08,14.89]
[1727140721159,14.89,145.16,145.06,17.7145]
[1727140721355,1.3472,145.15,145.06,17.7145]
[1727140721556,3.4458,145.11,145.06,17.7145]
[1727140722560,3.4458,145.11,145.06,21.1613]
[1727140722757,3.446,145.1,145.06,17.7145]
[1727140722962,1.3472,145.15,145.03,14.89]
[1727140722963,14.89,145.13,145.03,14.89]
[1727140723166,2.7404,145.12,145.05,14.89]
[1727140723753,2.7404,145.12,145.05,18.337]
[1727140723961,2.7404,145.12,145.05,14.89]
[1727140724160,3.4459,145.11,145.07,14.89]
[1727140725056,1.394,145.12,145.07,14.89]
[1727140727365,3.4461,145.1,145.07,14.89]
[1727140728172,3.4459,145.11,145.07,14.89]
[1727140728466,16.2372,145.15,145.07,14.89]
[1727140729364,3.4462,145.1,145.07,14.89]
[1727140729570,16.2372,145.15,145.07,14.89]
[1727140729766,1.3472,145.15,145.08,14.89]
[1727140730068,1.3965,145.16,145.1,14.89]
[1727140730569,3.4452,145.14,145.1,14.89]
[1727140730963,1.3965,145.16,145.1,14.89]
[1727140731261,1.3965,145.16,145.08,14.89]
[1727140731667,3.4457,145.12,145.08,14.89]
[1727140732466,3.4459,145.11,145.08,14.89]
[1727140732766,1.3965,145.16,145.08,18.3364]
[1727140733764,3.4455,145.13,145.08,18.3364]
[1727140734167,131.08253742,145.38,145.12,14.89]
[1727140734468,18.9889,145.23,145.15,14.89]
[1727140735166,3.4441,145.19,145.15,14.89]
[1727140738166,3.41548007,145.18,145.13,14.89]
[1727140738470,3.36825351,145.18,145.13,14.89]
[1727140738670,3.4446,145.17,145.13,14.89]
[1727140739367,4.0989,145.23,145.13,18.3351]
[1727140739368,18.9889,145.23,145.13,18.3351]
[1727140740367,3.4444,145.17,145.13,18.3351]
[1727140740876,3.43491323,145.17,145.07,1.3496]
[1727140741167,18.32353416,145.17,145.07,16.2396]
[1727140742171,3.43353416,145.17,145.09,14.89]
[1727140742373,14.89,145.19,145.09,14.89]
[1727140742673,14.89,145.19,145.1,3.4459]
[1727140742971,14.89,145.19,145.09,14.89]
[1727140743569,14.89,145.17,145.09,14.89]
[1727140743868,18.38903988,145.17,145.07,16.2396]
[1727140744265,3.4456,145.12,145.07,16.2396]
[1727140745071,14.89,145.15,145.07,16.2396]
[1727140745473,3.4462,145.1,145.07,1.3496]
[1727140745670,14.89,145.13,145.07,1.3496]
[1727140746371,18.29090549,145.13,145.07,1.3496]
[1727140746964,3.4459,145.11,145.07,1.3496]
[1727140747772,3.4461,145.1,145.07,1.3496]
[1727140748978,3.4464,145.09,145.07,1.3496]
[1727140749881,3.446,145.11,145.07,1.3496]
[1727140750576,3.446,145.1,145.07,1.3496]
[1727140753181,4.1193,145.16,145.07,16.2396]
[1727140753375,3.53094137,145.15,145.07,16.2396]
[1727140753575,4.1193,145.16,145.07,19.6862]
[1727140753576,3.4457,145.12,145.07,19.6862]
[1727140753770,3.40402786,145.14,145.07,16.2396]
[1727140753977,4.1193,145.16,145.07,16.2396]
[1727140754581,3.4458,145.11,145.07,16.2396]
[1727140755676,14.89,145.15,145.07,1.3496]
[1727140755882,14.89,145.14,145.07,1.3496]
[1727140756281,3.4463,145.09,145.07,1.3496]
[1727140756783,14.89,145.14,145.07,1.3496]
[1727140756984,3.4465,145.08,145.06,1.3943]
[1727140759075,3.42230233,145.1,145.03,14.89]
[1727140759385,14.89,145.11,145.02,1.3532]
[1727140759777,3.4469,145.07,145.02,1.3532]
[1727140760386,3.40921229,145.08,145.02,1.3532]
[1727140760584,14.89,145.08,144.99,17.615]
[1727140760788,18.38752135,145.08,144.99,17.615]
[1727140761189,18.38752135,145.08,144.99,16.2273]
[1727140761389,14.89,145.06,144.98,1.386]
[1727140761682,14.89,145.06,144.96,14.89]
[1727140761881,3.4484,145.01,144.96,14.89]
[1727140762083,14.89,145.04,144.96,14.89]
[1727140762485,3.448,145.02,144.96,18.3392]
[1727140763086,3.448,145.02,144.94,2.7657]
[1727140763087,3.52649775,145.06,144.98,14.89]
[1727140763279,14.89,145.08,144.98,14.89]
[1727140763681,3.4475,145.04,144.98,18.3386]
[1727140765782,14.89,145.06,144.96,14.89]
[1727140765989,14.89,145.06,144.98,14.89]
[1727140766585,3.4472,145.05,145.0,3.4484]
[1727140766891,14.89,145.06,144.98,14.89]
[1727140767890,3.4478,145.03,144.98,18.3389]
[1727140769594,3.4479,145.02,144.97,3.449]
[1727140770990,3.4482,145.01,144.96,18.3392]
[1727140771694,3.448,145.02,144.97,3.449]
[1727140774695,3.4478,145.03,144.98,18.3388]
[1727140774901,14.89,145.07,144.98,14.89]
[1727140775086,18.28705442,145.07,144.98,14.89]
[1727140775288,18.28705442,145.07,144.99,3.4485]
[1727140775493,18.28705442,145.07,144.96,14.89]
[1727140775993,3.4478,145.03,144.98,3.4488]
[1727140777696,18.28705442,145.07,144.98,14.89]
[1727140778099,3.4475,145.04,144.99,3.4485]
[1727140778604,18.28705442,145.07,144.98,14.89]
[1727140778900,18.28705442,145.07,144.96,14.89]
[1727140779100,3.4479,145.03,144.98,3.4488]
[1727140779301,18.28705442,145.07,144.96,14.89]
[1727140779700,18.28705442,145.07,144.97,3.4491]
[1727140779701,3.448,145.02,144.97,3.4491]
[1727140779906,14.89,145.05,144.94,17.6557]
[1727140780104,14.89,145.0,144.94,1.386]
[1727140780600,3.4343278,145.0,144.94,1.386]
[1727140780911,14.89,145.02,144.94,1.386]
[1727140781208,3.4485,145.0,144.95,3.4495]
[1727140782101,14.89,145.0,144.9,1.359]
[1727140782406,14.89,145.0,144.9,17.5734]
[1727140782700,14.89,144.97,144.9,2.6834]
[1727140782901,14.89,144.95,144.88,1.3427]
[1727140783099,14.89,144.95,144.85,14.89]
[1727140783404,3.4502,144.93,144.87,97.10860059]
[1727140783603,3.4502,144.93,144.87,93.65730059]
[1727140784002,6.88916578,144.93,144.87,93.65730059]
[1727140784800,6.88916578,144.93,144.88,3.4512]
[1727140785002,14.89,144.91,144.83,1.3244]
[1727140785904,14.89,144.89,144.81,2.7017]
[1727140786303,14.89,144.89,144.81,1.359]
[1727140786904,1.3241,144.92,144.81,1.359]
[1727140787111,14.89,144.89,144.81,1.359]
[1727140787303,3.4517,144.86,144.81,1.359]
[1727140787703,14.89,144.89,144.81,1.359]
[1727140788612,3.4514,144.88,144.82,3.4525]
[1727140789307,14.89,144.89,144.81,1.359]
[1727140789703,14.89,144.89,144.82,3.4525]
[1727140789908,18.3412,144.89,144.82,14.89]
[1727140790110,1.3241,144.92,144.85,14.89]
[1727140791005,3.4506,144.91,144.85,14.89]
[1727140791203,16.2141,144.92,144.83,14.89]
[1727140791700,3.4506,144.91,144.83,14.89]
[1727140792106,16.2141,144.92,144.83,14.89]
[1727140793513,3.4512,144.89,144.83,18.3422]
[1727140795116,3.4512,144.89,144.83,3.4522]
[1727140795509,3.4512,144.89,144.84,3.4522]
[1727140796610,3.4513,144.88,144.83,3.4524]
[1727140796817,14.89,144.9,144.82,14.89]
[1727140797216,3.4513,144.88,144.83,3.4522]
[1727140797713,3.4516,144.87,144.82,3.4525]
[1727140799110,3.4516,144.87,144.81,1.359]
[1727140799111,14.89,144.87,144.81,4.8119]
[1727140799916,14.89,144.87,144.8,3.4531]
[1727140800305,14.89,144.87,144.81,3.4529]
[1727140800716,14.89,144.87,144.8,14.89]
[1727140800915,18.3416,144.87,144.82,3.4527]
[1727140801115,14.89,144.87,144.8,14.89]
[1727140801819,14.89,144.87,144.79,95.13061275]
[1727140802116,3.4519,144.86,144.81,3.4528]
[1727140803821,14.89,144.85,144.79,95.11891275]
[1727140804209,14.89,144.87,144.79,95.11891275]
[1727140804614,1.3241,144.92,144.82,14.89]
[1727140804817,3.4517,144.87,144.82,18.3426]
[1727140805121,3.4517,144.87,144.82,3.4526]
[1727140805817,14.89,144.87,144.79,95.11891275]
[1727140806022,14.89,144.89,144.79,95.11891275]
[1727140806328,3.4516,144.87,144.8,14.89]
[1727140806618,14.89,144.89,144.8,14.89]
[1727140806823,3.4515,144.88,144.8,14.89]
[1727140807014,14.89,144.89,144.8,14.89]
[1727140808621,3.4516,144.87,144.82,3.4526]
[1727140809719,3.4516,144.87,144.83,3.4524]
[1727140811320,3.4511,144.89,144.82,14.89]
[1727140811626,14.89,144.91,144.81,1.4394]
[1727140811929,3.4514,144.88,144.83,3.4524]
[1727140812316,14.89,144.89,144.83,3.4524]
[1727140812916,1.3241,144.92,144.84,3.4521]
[1727140813125,14.89,144.91,144.84,3.4521]
[1727140813528,3.4512,144.89,144.84,3.4521]
[1727140813715,1.3241,144.92,144.84,14.89]
[1727140813919,3.451,144.9,144.82,14.89]
[1727140814119,14.89,144.91,144.82,14.89]
[1727140814722,14.89,144.89,144.81,1.4394]
[1727140815628,3.4516,144.87,144.81,4.8922]
[1727140815829,3.4516,144.87,144.81,1.4394]
[1727140816128,14.89,144.87,144.79,95.11891275]
[1727140817228,3.4521,144.85,144.8,3.4531]
[1727140817529,3.44017542,144.84,144.8,3.4531]
[1727140818727,3.4521,144.85,144.8,3.4531]
[1727140818928,3.51586319,144.85,144.81,3.4529]
[1727140819231,1.445,144.88,144.8,14.89]
[1727140820332,3.4519,144.86,144.81,3.4528]
[1727140822128,97.73,144.99,144.82,14.89]